bitfinex-derivatives/quotes_ETHF0:USTF0_20251225
["timestamp","ask_amount","ask_price","bid_price","bid_amount"]
[1766633370110,1.00316519,2949.0,2948.3,3.393]
[1766633370306,9.302,2949.1,2948.3,3.393]
[1766633370517,1.00314419,2949.0,2948.3,3.393]
[1766633370819,9.302,2949.1,2948.3,3.393]
[1766633371016,1.00314521,2949.0,2948.3,3.393]
[1766633371313,9.302,2949.1,2948.3,3.393]
[1766633371516,1.0031169,2949.0,2948.3,3.393]
[1766633371814,9.302,2949.1,2948.3,3.393]
[1766633372015,1.0031169,2949.0,2948.3,3.393]
[1766633372315,9.302,2949.1,2948.3,3.393]
[1766633372509,1.00309248,2949.0,2948.3,3.393]
[1766633372706,9.302,2949.1,2948.3,3.393]
[1766633373009,1.00310133,2949.0,2948.3,3.393]
[1766633373211,9.302,2949.1,2948.3,3.393]
[1766633373411,1.00307571,2949.0,2948.3,3.393]
[1766633373622,9.302,2949.1,2948.3,3.393]
[1766633373920,1.00307571,2949.0,2948.3,3.393]
[1766633374121,9.302,2949.1,2948.3,3.393]
[1766633374420,1.00305734,2949.0,2948.3,3.393]
[1766633374719,9.302,2949.1,2948.3,3.393]
[1766633374911,1.00305731,2949.0,2948.3,3.393]
[1766633375108,9.302,2949.1,2948.3,3.393]
[1766633375312,1.00304143,2949.0,2948.3,3.393]
[1766633375521,9.302,2949.1,2948.3,3.393]
[1766633375721,1.00304143,2949.0,2948.3,3.393]
[1766633375922,9.302,2949.1,2948.3,3.393]
[1766633376122,1.00303918,2949.0,2948.3,3.393]
[1766633376314,9.302,2949.1,2948.3,3.393]
[1766633376514,1.0030255,2949.0,2948.3,3.393]
[1766633376716,9.302,2949.1,2948.3,3.393]
[1766633376922,1.00302547,2949.0,2948.3,3.393]
[1766633377122,9.302,2949.1,2948.3,3.393]
[1766633377423,1.00300903,2949.0,2948.3,3.393]
[1766633377620,9.302,2949.1,2948.3,3.393]
[1766633377818,1.00300841,2949.0,2948.3,3.393]
[1766633378019,9.302,2949.1,2948.3,3.393]
[1766633378218,1.00298135,2949.0,2948.3,3.393]
[1766633378419,9.302,2949.1,2948.3,3.393]
[1766633378620,1.00296915,2949.0,2948.3,3.393]
[1766633378818,9.302,2949.1,2948.3,3.393]
[1766633379118,1.00296909,2949.0,2948.3,3.393]
[1766633379320,9.302,2949.1,2948.3,3.393]
[1766633379509,1.00295899,2949.0,2948.3,3.393]
[1766633379715,9.302,2949.1,2948.3,3.393]
[1766633380023,1.00295899,2949.0,2948.3,3.393]
[1766633380223,9.302,2949.1,2948.3,3.393]
[1766633380423,1.00295113,2949.0,2948.3,3.393]
[1766633380721,9.302,2949.1,2948.3,3.393]
[1766633380922,1.00295124,2949.0,2948.3,3.393]
[1766633381125,9.302,2949.1,2948.3,3.393]
[1766633381422,1.00296422,2949.0,2948.3,3.393]
[1766633381721,9.302,2949.1,2948.3,3.393]
[1766633381922,1.002962,2949.0,2948.3,3.393]
[1766633382218,9.302,2949.1,2948.3,3.393]
[1766633382420,1.00296579,2949.0,2948.3,3.393]
[1766633382621,9.302,2949.1,2948.3,3.393]
[1766633382821,1.00296572,2949.0,2948.3,3.393]
[1766633383022,9.302,2949.1,2948.3,3.393]
[1766633383216,1.00296608,2949.0,2948.3,3.393]
[1766633383521,9.302,2949.1,2948.3,3.393]
[1766633383721,1.00297057,2949.0,2948.3,3.393]
[1766633384020,9.302,2949.1,2948.3,3.393]
[1766633384221,1.00297057,2949.0,2948.3,3.393]
[1766633384421,9.302,2949.1,2948.3,3.393]
[1766633384621,1.00297835,2949.0,2948.3,3.393]
[1766633384822,9.302,2949.1,2948.3,3.393]
[1766633385022,1.0029789,2949.0,2948.3,3.393]
[1766633385223,9.302,2949.1,2948.3,3.393]
[1766633385424,1.00298913,2949.0,2948.3,3.393]
[1766633385624,9.302,2949.1,2948.3,3.393]
[1766633385921,1.00295583,2949.0,2948.3,3.393]
[1766633386124,9.302,2949.1,2948.3,3.393]
[1766633386322,4.39596988,2949.0,2948.3,3.393]
[1766633386513,3.393,2949.0,2948.3,3.393]
[1766633388125,3.393,2949.0,2948.2,0.00339056]
[1766633388823,3.393,2949.0,2948.3,3.393]
[1766633395430,1.00324154,2948.9,2948.3,3.393]
[1766633395625,3.393,2949.0,2948.3,3.393]
[1766633395930,1.00324147,2948.9,2948.3,3.393]
[1766633396127,3.393,2949.0,2948.3,3.393]
[1766633396323,3.393,2949.0,2948.2,0.00339056]
[1766633396630,1.00322158,2948.9,2948.3,3.393]
[1766633396827,3.393,2949.0,2948.2,0.00339056]
[1766633397027,1.00322171,2948.9,2948.3,3.393]
[1766633397325,3.393,2949.0,2948.3,3.393]
[1766633397529,1.00320176,2948.9,2948.3,3.393]
[1766633397723,3.393,2949.0,2948.3,3.393]
[1766633397923,1.00319996,2948.9,2948.3,3.393]
[1766633398122,3.393,2949.0,2948.3,3.393]
[1766633398422,1.00317939,2948.9,2948.3,3.393]
[1766633398619,1.00313483,2948.8,2948.1,3.393]
[1766633398826,3.393,2949.0,2948.1,3.393]
[1766633399024,1.00314207,2948.9,2948.1,3.393]
[1766633399224,1.00314207,2948.8,2948.1,3.393]
[1766633399420,3.393,2948.7,2948.1,3.393]
[1766633401135,3.393,2948.7,2947.6,1.07480672]
[1766633401434,3.393,2948.7,2947.7,3.393]
[1766633402522,3.393,2948.7,2947.6,1.07480672]
[1766633402826,3.393,2948.7,2947.7,3.393]
[1766633403027,3.393,2948.7,2947.6,0.00347125]
[1766633403326,4.569,2948.6,2947.7,3.393]
[1766633405228,4.569,2948.6,2947.6,0.00347125]
[1766633406737,1.00126639,2948.5,2947.6,0.00347125]
[1766633406940,4.39426639,2948.4,2947.6,0.00347125]
[1766633407132,3.393,2948.4,2947.6,0.00347125]
[1766633408027,3.393,2948.4,2947.3,1.04320623]
[1766633408339,0.00508587,2948.1,2947.4,3.393]
[1766633408526,3.39808587,2948.1,2947.4,3.393]
[1766633408937,3.39808587,2948.1,2947.4,3.39718749]
[1766633409944,3.39808587,2948.1,2947.4,0.00418749]
[1766633421450,3.39808587,2948.1,2947.4,3.39718749]
[1766633440472,3.39808587,2948.1,2947.4,0.00418749]
[1766633440673,3.39808587,2948.1,2947.5,3.393]
[1766633444080,3.39808587,2948.1,2947.4,0.00418749]
[1766633444577,3.39808587,2948.1,2947.5,3.393]
[1766633447379,3.39808587,2948.1,2947.4,0.00418749]
[1766633447572,3.39808587,2948.1,2947.5,3.393]
[1766633448578,3.39808587,2948.1,2947.4,0.00418749]
[1766633448780,3.39808587,2948.1,2947.5,3.393]
[1766633449071,3.39808587,2948.1,2947.4,0.00418749]
[1766633449280,3.39808587,2948.1,2947.5,3.2341]
[1766633449476,3.39808587,2948.1,2947.5,3.1149]
[1766633449680,3.39808587,2948.1,2947.4,0.00418749]
[1766633449876,3.39808587,2948.1,2947.4,3.39718749]
[1766633451079,3.39808587,2948.1,2947.4,0.00418749]
[1766633451379,3.39808587,2948.1,2947.4,3.39718749]
[1766633458286,3.39808587,2948.1,2947.4,0.00418749]
[1766633458486,3.39808587,2948.1,2947.4,3.39718749]
[1766633460587,3.39808587,2948.1,2947.4,0.00418749]
[1766633460788,3.39808587,2948.1,2947.4,3.39718749]
[1766633461881,3.39808587,2948.1,2947.4,0.00418749]
[1766633462288,3.39808587,2948.1,2947.4,3.39718749]
[1766633464878,3.39808587,2948.1,2947.4,0.00418749]
[1766633473492,3.39808587,2948.1,2947.0,2.08767571]
[1766633473686,3.39808587,2948.1,2947.1,3.393]
[1766633474496,3.39808587,2948.1,2947.1,3.39699258]
[1766633480992,3.39808587,2948.1,2947.1,0.00399258]
[1766633481200,3.39808587,2948.1,2947.2,3.393]
[1766633482099,3.39808587,2948.1,2947.1,0.00399258]
[1766633482407,3.39808587,2948.1,2946.8,3.394]
[1766633482408,6.52590093,2948.0,2946.8,3.394]
[1766633482592,1.00890093,2947.9,2946.8,3.394]
[1766633482791,4.40290093,2947.8,2946.8,3.394]
[1766633482993,3.394,2947.8,2946.5,0.0056]
[1766633483189,3.394,2947.8,2946.7,0.11414186]
[1766633483385,3.394,2947.8,2946.8,3.394]
[1766633483997,3.394,2947.8,2946.7,0.00391675]
[1766633484204,3.394,2947.8,2946.8,3.394]
[1766633484701,1.00796273,2947.7,2946.8,3.394]
[1766633484892,3.394,2947.8,2946.8,3.394]
[1766633485092,1.00796336,2947.7,2946.8,3.394]
[1766633485299,3.394,2947.8,2946.8,3.394]
[1766633485495,3.3997,2947.8,2946.8,3.394]
[1766633487102,3.3997,2947.8,2946.7,0.00391675]
[1766633487297,3.394,2947.8,2946.7,3.39791675]
[1766633498505,3.394,2947.8,2946.7,0.00391675]
[1766633503420,1.00710446,2947.7,2946.7,0.00391675]
[1766633503622,1.00710446,2947.6,2946.7,0.00391675]
[1766633503825,9.305,2947.5,2946.7,0.00391675]
[1766633504825,1.00696246,2947.4,2946.3,3.394]
[1766633505030,1.00696246,2947.3,2946.3,3.394]
[1766633505231,3.394,2947.2,2946.3,3.394]
[1766633505426,3.394,2947.2,2946.2,3.394]
[1766633505827,3.394,2947.2,2946.2,3.39807526]
[1766633507128,3.394,2947.2,2946.2,0.00407526]
[1766633507334,3.394,2947.2,2946.2,3.39807526]
[1766633509532,3.394,2947.2,2946.2,0.00407526]
[1766633509728,1.00551475,2947.1,2946.2,0.00407526]
[1766633510036,1.00551475,2947.0,2946.2,0.00407526]
[1766633510337,7.29940918,2947.5,2946.2,0.00407526]
[1766633510338,9.306,2946.9,2946.2,0.00407526]
[1766633510529,8.639,2946.9,2946.2,0.00407526]
[1766633514137,8.639,2946.9,2945.6,0.96071247]
[1766633514339,8.639,2946.9,2945.7,3.395]
[1766633514340,0.00508587,2946.5,2945.7,3.395]
[1766633514929,0.00508587,2946.5,2945.8,3.395]
[1766633515229,0.00508587,2946.5,2945.8,3.39912003]
[1766633515428,8.639,2946.9,2945.8,3.39912003]
[1766633515628,8.639,2946.9,2945.9,3.395]
[1766633516338,0.00508587,2946.7,2946.1,0.00508587]
[1766633516744,3.395,2946.6,2945.8,3.39912003]
[1766633518540,0.00508587,2946.7,2945.8,3.39912003]
[1766633521143,8.64,2946.9,2945.8,3.39912003]
[1766633521845,3.395,2946.9,2945.8,3.39912003]
[1766633522344,3.395,2946.9,2946.1,0.00508587]
[1766633522642,3.395,2946.9,2946.2,3.395]
[1766633523345,0.00508587,2946.8,2946.2,3.395]
[1766633524146,3.395,2946.9,2946.2,3.395]
[1766633524339,3.1964,2946.9,2946.2,3.395]
[1766633524539,0.2331,2946.9,2946.2,3.395]
[1766633525046,3.395,2947.1,2946.2,3.395]
[1766633525440,5.912,2947.3,2946.2,3.395]
[1766633526937,3.395,2947.4,2946.2,4.41508249]
[1766633527343,0.00508587,2947.1,2946.2,4.41508249]
[1766633529752,3.395,2947.4,2946.2,4.41508249]
[1766633530751,0.00339056,2947.1,2946.2,4.41508249]
[1766633531451,3.395,2947.4,2946.2,4.41508249]
[1766633531846,0.00258025,2947.6,2946.2,4.41508249]
[1766633542357,0.00258025,2947.6,2946.2,4.58490249]
[1766633549965,0.00258025,2947.6,2946.3,6.016]
[1766633550166,0.00258025,2947.6,2946.4,8.486]
[1766633550465,0.00258025,2947.6,2946.5,3.394]
[1766633550664,0.00258025,2947.6,2946.6,6.017]
[1766633551160,0.00258025,2947.6,2946.2,1.18990249]
[1766633551567,0.00258025,2947.6,2946.3,6.918]
[1766633554264,1.00844195,2947.5,2946.3,6.918]
[1766633554564,3.394,2947.4,2946.3,6.918]
[1766633575787,3.394,2947.4,2946.2,0.16982]
[1766633575989,3.394,2947.4,2946.3,3.621]
[1766633578381,3.394,2947.4,2946.1,1.12503804]
[1766633578582,3.394,2947.4,2946.2,4.081]
[1766633580988,3.394,2947.4,2946.2,5.18074517]
[1766633581493,3.394,2947.4,2946.2,5.20938327]
[1766633581796,3.394,2947.4,2946.2,4.081]
[1766633581988,3.394,2947.4,2946.2,5.20938327]
[1766633582490,3.394,2947.4,2946.2,5.20649854]
[1766633619339,0.00258025,2947.6,2946.2,5.20649854]
[1766633619535,1.00697796,2947.5,2946.2,5.20649854]
[1766633619838,0.00258025,2947.6,2946.2,5.20649854]
[1766633620037,1.00707174,2947.5,2946.2,5.20649854]
[1766633620239,0.00258025,2947.6,2946.2,5.20649854]
[1766633620442,1.0070327,2947.5,2946.2,5.20649854]
[1766633620632,0.00258025,2947.6,2946.2,5.20649854]
[1766633620828,1.00703692,2947.5,2946.2,5.20649854]
[1766633621033,0.00258025,2947.6,2946.2,5.20649854]
[1766633631451,0.00258025,2947.6,2946.2,5.37631854]
[1766633633152,0.00258025,2947.6,2946.3,8.486]
[1766633634456,0.00258025,2947.6,2946.3,15.27837638]
[1766633647658,0.00258025,2947.6,2946.4,3.394]
[1766633657675,0.00258025,2947.6,2946.3,6.79237638]
[1766633657873,0.00258025,2947.6,2946.4,7.583]
[1766633680309,3.394,2947.5,2946.4,7.583]
[1766633682904,3.394,2947.5,2946.3,6.79237638]
[1766633683105,3.394,2947.5,2946.4,9.411]
[1766633688108,3.394,2947.5,2946.5,9.411]
[1766633700619,3.394,2947.5,2946.3,6.79237638]
[1766633700820,3.394,2947.5,2946.4,9.41]
[1766633701116,3.394,2947.5,2946.3,6.79237638]
[1766633701311,3.394,2947.5,2946.5,6.016]
[1766633702521,3.394,2947.5,2946.5,7.04962258]
[1766633703219,3.394,2947.5,2946.5,1.03362258]
[1766633703419,3.394,2947.5,2946.6,5.987]
[1766633703611,3.394,2947.5,2946.7,9.41]
[1766633705821,3.394,2947.5,2946.3,6.79237638]
[1766633706010,3.394,2947.5,2946.4,9.41]
[1766633707630,3.394,2947.5,2946.4,10.40289174]
[1766633713718,3.394,2947.5,2946.4,0.99289174]
[1766633713925,3.394,2947.5,2946.5,9.409]
[1766633719930,3.394,2947.5,2946.6,6.015]
[1766633720120,3.394,2947.5,2946.7,3.394]
[1766633760772,3.394,2947.5,2946.4,0.99289174]
[1766633760971,3.394,2947.5,2946.5,9.406]
[1766633763462,0.00258025,2947.6,2946.5,9.406]
[1766633772782,0.00258025,2947.6,2946.6,8.486]
[1766633798192,0.00258025,2947.6,2946.7,6.015]
[1766633798394,0.00258025,2947.6,2946.8,3.394]
[1766633798596,0.00258025,2947.6,2946.9,6.015]
[1766633802407,0.00258025,2947.6,2947.0,3.394]
[1766633802606,0.00258025,2947.6,2946.8,3.394]
[1766633802804,3.394,2947.5,2946.9,5.2404]
[1766633803107,3.394,2947.5,2944.9,3.66499619]
[1766633803300,1.00362572,2947.4,2946.2,7.883]
[1766633803496,3.394,2947.5,2946.3,9.409]
[1766633803695,1.00357389,2947.4,2946.2,9.409]
[1766633804000,1.00357389,2947.3,2946.2,9.409]
[1766633804200,3.394,2947.2,2946.2,9.409]
[1766633804405,3.394,2947.1,2946.2,9.409]
[1766633808304,3.394,2947.1,2946.1,0.00508587]
[1766633808510,3.394,2947.1,2946.2,4.273]
[1766633814822,3.394,2947.1,2946.1,0.00508587]
[1766633815021,3.394,2947.1,2946.2,3.395]
[1766633825229,3.2946,2947.1,2946.2,3.395]
[1766633825418,3.0958,2947.1,2946.2,3.395]
[1766633825619,2.9964,2947.1,2946.2,3.395]
[1766633826026,3.395,2947.4,2946.2,3.395]
[1766633829933,3.395,2947.4,2946.1,0.00508587]
[1766633830134,3.395,2947.4,2946.2,3.481]
[1766633830936,3.395,2947.4,2946.3,7.753]
[1766633835636,3.395,2947.4,2946.4,3.395]
[1766633835835,1.00526398,2947.3,2946.4,3.395]
[1766633836028,3.395,2947.4,2946.4,3.395]
[1766633836226,1.00526242,2947.3,2946.4,3.395]
[1766633836430,3.395,2947.4,2946.4,3.395]
[1766633836631,1.00525914,2947.3,2946.4,3.395]
[1766633836838,3.395,2947.4,2946.4,3.395]
[1766633837040,1.00525783,2947.3,2946.4,3.395]
[1766633837333,3.4841,2947.4,2946.4,3.395]
[1766633837530,1.00526957,2947.3,2946.4,3.395]
[1766633837730,3.395,2947.4,2946.4,3.395]
[1766633837930,1.00526963,2947.3,2946.4,3.395]
[1766633838130,3.395,2947.4,2946.4,3.395]
[1766633838340,1.00551718,2947.3,2946.4,3.395]
[1766633838639,3.395,2947.4,2946.4,3.395]
[1766633838839,1.00551724,2947.3,2946.4,3.395]
[1766633839038,3.395,2947.4,2946.4,3.395]
[1766633839238,1.00553058,2947.3,2946.4,3.395]
[1766633839441,3.395,2947.4,2946.1,0.00508587]
[1766633839642,1.00553058,2947.3,2946.2,3.395]
[1766633839843,3.395,2947.4,2946.2,3.395]
[1766633840031,1.00552986,2947.3,2946.2,3.395]
[1766633840234,3.395,2947.4,2946.3,3.395]
[1766633840434,1.00554674,2947.3,2946.3,3.395]
[1766633840631,3.395,2947.4,2946.3,3.395]
[1766633840830,1.0055448,2947.3,2946.3,3.395]
[1766633841134,3.395,2947.4,2946.3,3.395]
[1766633841336,1.00556104,2947.3,2946.3,3.395]
[1766633841535,3.4841,2947.4,2946.3,3.395]
[1766633841833,1.00555886,2947.3,2946.3,3.395]
[1766633842035,3.395,2947.4,2946.3,3.395]
[1766633842230,1.00557587,2947.3,2946.3,3.395]
[1766633842443,3.395,2947.4,2946.3,3.395]
[1766633842636,1.00557772,2947.3,2946.3,3.395]
[1766633842835,3.395,2947.4,2946.3,3.395]
[1766633843031,1.00557785,2947.3,2946.3,3.395]
[1766633843330,3.395,2947.4,2946.3,3.395]
[1766633843636,1.00559517,2947.3,2946.3,3.395]
[1766633843936,3.395,2947.4,2946.3,3.395]
[1766633844137,1.00559513,2947.3,2946.3,3.395]
[1766633844335,3.395,2947.4,2946.3,3.395]
[1766633844542,1.00561629,2947.3,2946.3,3.395]
[1766633844743,3.395,2947.4,2946.3,3.395]
[1766633844944,1.00561441,2947.3,2946.3,3.395]
[1766633845142,3.395,2947.4,2946.3,3.395]
[1766633845345,1.00561634,2947.3,2946.3,3.395]
[1766633845540,3.395,2947.4,2946.3,3.395]
[1766633845839,1.00561629,2947.3,2946.3,3.395]
[1766633846036,3.395,2947.4,2946.3,3.395]
[1766633846237,1.00563011,2947.3,2946.3,3.395]
[1766633846535,3.395,2947.4,2946.3,3.395]
[1766633846735,1.00563004,2947.3,2946.3,3.395]
[1766633846935,3.395,2947.4,2946.3,3.395]
[1766633847135,1.0056298,2947.3,2946.3,3.395]
[1766633847337,1.0056298,2947.2,2946.3,3.395]
[1766633847537,3.395,2947.1,2946.3,3.395]
[1766633850745,3.395,2947.1,2946.1,0.00508587]
[1766633850953,3.395,2947.1,2946.2,3.395]
[1766633852950,3.395,2947.1,2946.1,0.00508587]
[1766633853150,1.00500179,2947.0,2946.1,0.00508587]
[1766633853344,8.925,2947.1,2946.1,0.00508587]
[1766633853544,1.00503856,2947.0,2946.1,0.00508587]
[1766633853740,8.925,2947.1,2946.1,0.00508587]
[1766633853945,1.00517317,2947.0,2946.1,0.00508587]
[1766633854146,8.925,2947.1,2946.1,0.00508587]
[1766633854445,1.00509803,2947.0,2946.1,0.00508587]
[1766633854644,8.925,2947.1,2946.1,0.00508587]
[1766633854842,1.00504213,2947.0,2946.1,0.00508587]
[1766633855046,8.925,2947.1,2946.1,0.00508587]
[1766633855246,1.00492003,2947.0,2946.1,0.00508587]
[1766633855450,8.925,2947.1,2946.1,0.00508587]
[1766633855652,1.00492022,2947.0,2946.1,0.00508587]
[1766633855850,8.925,2947.1,2946.1,0.00508587]
[1766633856050,1.00492052,2947.0,2946.1,0.00508587]
[1766633856255,8.925,2947.1,2946.1,0.00508587]
[1766633856456,1.00485074,2947.0,2946.1,0.00508587]
[1766633856655,8.925,2947.1,2946.1,0.00508587]
[1766633856854,1.00484855,2947.0,2946.1,0.00508587]
[1766633857048,8.925,2947.1,2946.1,0.00508587]
[1766633857249,1.0048126,2947.0,2946.1,0.00508587]
[1766633857450,8.925,2947.1,2946.1,0.00508587]
[1766633857745,1.00481269,2947.0,2946.1,0.00508587]
[1766633857949,8.925,2947.1,2946.1,0.00508587]
[1766633858149,1.00481489,2947.0,2946.1,0.00508587]
[1766633858357,8.925,2947.1,2946.1,0.00508587]
[1766633858555,1.00478922,2947.0,2946.1,0.00508587]
[1766633858758,8.925,2947.1,2946.1,0.00508587]
[1766633858960,1.00478981,2947.0,2946.1,0.00508587]
[1766633859159,8.925,2947.1,2946.1,0.00508587]
[1766633859461,1.00476225,2947.0,2946.1,0.00508587]
[1766633859759,8.925,2947.1,2946.1,0.00508587]
[1766633859962,1.00476244,2947.0,2946.1,0.00508587]
[1766633860148,8.925,2947.1,2946.1,0.00508587]
[1766633860348,1.00470926,2947.0,2946.1,0.00508587]
[1766633860654,8.925,2947.1,2946.1,0.00508587]
[1766633860854,1.00470702,2947.0,2946.1,0.00508587]
[1766633861055,8.925,2947.1,2946.1,0.00508587]
[1766633861260,1.0046934,2947.0,2946.1,0.00508587]
[1766633861455,8.925,2947.1,2946.1,0.00508587]
[1766633861655,1.00469305,2947.0,2946.1,0.00508587]
[1766633861960,8.925,2947.1,2946.1,0.00508587]
[1766633862161,1.00469749,2947.0,2946.1,0.00508587]
[1766633862460,8.925,2947.1,2946.1,0.00508587]
[1766633862760,1.0046696,2947.0,2946.1,0.00508587]
[1766633862963,8.925,2947.1,2946.1,0.00508587]
[1766633863165,1.00466773,2947.0,2946.1,0.00508587]
[1766633863354,1.00466773,2946.9,2946.1,0.00508587]
[1766633863552,3.395,2946.8,2946.1,0.00508587]
[1766633871769,0.16976,2947.4,2946.1,0.00508587]
[1766633871968,18.79380868,2947.3,2946.1,0.00508587]
[1766633872168,1.00380868,2947.2,2946.1,0.00508587]
[1766633884585,3.395,2947.1,2946.1,0.00508587]
[1766633884982,3.395,2947.2,2946.1,0.00508587]
[1766633889385,3.395,2947.2,2946.2,1.732]
[1766633889588,3.395,2947.2,2946.3,3.395]
[1766633892383,3.395,2947.5,2946.3,3.395]
[1766633898096,3.395,2947.5,2946.1,0.00508587]
[1766633898299,3.395,2947.5,2946.2,7.785]
[1766633900499,3.395,2947.5,2946.1,0.00508587]
[1766633900700,3.395,2947.5,2946.2,3.395]
[1766633901488,3.395,2947.5,2946.3,3.395]
[1766633901694,0.99809589,2947.4,2946.2,3.395]
[1766633901889,3.395,2947.5,2946.1,0.00508587]
[1766633901890,0.99809589,2947.3,2946.1,0.00508587]
[1766633902095,4.39309589,2947.2,2946.1,3.40008587]
[1766633902295,7.73109589,2947.1,2946.1,3.40008587]
[1766633902596,6.733,2947.1,2946.1,3.40008587]
[1766633902795,6.733,2947.1,2945.8,0.00412003]
[1766633903100,0.99799619,2947.0,2946.0,3.395]
[1766633903401,6.733,2947.1,2946.0,3.395]
[1766633903600,0.99796791,2947.0,2946.0,3.395]
[1766633903793,0.00508587,2946.8,2946.2,0.00508587]
[1766633903994,3.395,2946.7,2946.2,0.00508587]
[1766633909501,3.395,2946.7,2945.9,3.395]
[1766633909706,3.395,2946.7,2945.8,0.00412003]
[1766633909907,3.395,2946.7,2945.6,3.395]
[1766633910406,3.395,2946.7,2945.9,0.00508587]
[1766633910811,3.395,2946.7,2945.9,0.00805421]
[1766633912299,3.395,2946.7,2945.6,3.395]
[1766633913211,3.395,2946.7,2945.9,0.00508587]
[1766633914403,5.907,2946.6,2945.9,0.00508587]
[1766633914598,5.907,2946.6,2945.6,0.00308854]
[1766633914805,5.907,2946.6,2945.6,3.39808854]
[1766633915613,5.907,2946.6,2945.8,0.00508587]
[1766633936326,1.00140396,2946.5,2945.8,0.00508587]
[1766633936625,3.395,2946.4,2945.8,0.00508587]
[1766633944138,3.395,2946.4,2945.7,3.395]
[1766633945039,3.395,2946.4,2945.8,0.00508587]
[1766633967058,3.395,2946.4,2945.7,3.395]
[1766633968062,3.395,2946.4,2945.8,0.00339056]
[1766633972163,3.395,2946.4,2945.7,3.395]
[1766633972864,3.395,2946.4,2945.6,0.00308854]
[1766633973061,3.395,2946.4,2945.7,3.395]
[1766633974955,3.395,2946.4,2945.6,0.00308854]
[1766633975156,3.395,2946.4,2945.7,3.395]
[1766633980374,3.395,2946.4,2945.6,0.00308854]
[1766633980568,3.395,2946.4,2945.7,3.395]
[1766633984075,3.395,2946.4,2945.6,0.00308854]
[1766633984275,3.395,2946.4,2945.7,3.395]
[1766633989477,3.395,2946.4,2945.6,0.00308854]
[1766633989774,3.395,2946.4,2945.6,3.39808854]
[1766633992284,3.395,2946.4,2945.6,3.23918854]
[1766633992470,3.395,2946.4,2945.6,2.92138854]
[1766633993281,3.395,2946.4,2945.6,2.92479151]
[1766633995376,0.99952479,2946.3,2944.2,0.16994]
[1766633995579,3.46152479,2946.2,2944.5,0.0098]
[1766633995881,12.88352479,2946.1,2944.2,3.56494]
[1766633996076,0.99952479,2946.0,2944.2,3.56494]
[1766633996293,0.99952479,2945.9,2944.2,3.56494]
[1766633996478,10.30152479,2945.8,2944.2,3.56855397]
[1766633996686,0.00508587,2945.3,2944.2,0.00361397]
[1766633996983,3.396,2945.2,2944.2,0.00361397]
[1766633997185,3.396,2945.2,2944.2,3.39961397]
[1766633998176,3.396,2945.2,2944.2,0.00361397]
[1766633998372,3.396,2945.2,2944.2,3.39961397]
[1766634000289,3.396,2945.2,2944.2,0.00361397]
[1766634000493,3.396,2945.2,2944.2,3.39961397]
[1766634001377,3.396,2945.2,2944.2,0.00361397]
[1766634004991,0.0094757,2945.3,2944.2,0.00361397]
[1766634005190,3.427,2945.2,2944.2,0.00361397]
[1766634005694,3.396,2945.1,2944.3,3.396]
[1766634006188,3.396,2945.1,2944.2,0.00361397]
[1766634008590,3.396,2945.1,2943.8,3.397]
[1766634009588,3.396,2945.1,2943.8,3.40046797]
[1766634011391,0.0094757,2945.3,2943.8,3.40046797]
[1766634011592,3.397,2945.2,2943.8,4.26701907]
[1766634025715,3.397,2945.2,2943.8,0.87001907]
[1766634025914,3.397,2945.2,2943.9,9.402]
[1766634026317,3.397,2945.2,2943.8,0.87001907]
[1766634026814,3.397,2945.2,2943.9,7.136]
[1766634032323,3.397,2945.2,2943.8,0.87001907]
[1766634032523,3.397,2945.2,2943.9,9.402]
[1766634044828,1.00324922,2945.1,2943.9,9.402]
[1766634045028,3.397,2945.2,2943.9,9.402]
[1766634045234,1.00327407,2945.1,2943.9,9.402]
[1766634045434,3.397,2945.2,2943.9,9.402]
[1766634045741,1.00324632,2945.1,2943.9,9.402]
[1766634045941,3.397,2945.2,2943.9,9.402]
[1766634046140,1.00324627,2945.1,2943.9,9.402]
[1766634046342,3.397,2945.2,2943.9,9.402]
[1766634046541,1.00325034,2945.1,2943.9,9.402]
[1766634046742,3.397,2945.2,2943.9,9.402]
[1766634046942,1.00324965,2945.1,2943.9,9.402]
[1766634047142,3.397,2945.2,2943.9,9.402]
[1766634047342,1.00325501,2945.1,2943.9,9.402]
[1766634047536,3.397,2945.2,2943.9,9.402]
[1766634047735,1.00326418,2945.1,2943.9,9.402]
[1766634047941,3.397,2945.2,2943.9,9.402]
[1766634048241,1.00326342,2945.1,2943.9,9.402]
[1766634048441,3.397,2945.2,2943.9,9.402]
[1766634048642,0.99912881,2945.1,2943.9,9.402]
[1766634048941,3.397,2945.2,2943.9,9.402]
[1766634049143,0.99910032,2945.1,2943.9,9.402]
[1766634049442,3.397,2945.2,2943.9,9.402]
[1766634049632,0.99905358,2945.1,2943.9,9.402]
[1766634049836,3.397,2945.2,2943.9,9.402]
[1766634050035,0.9990497,2945.1,2943.9,9.402]
[1766634050236,3.397,2945.2,2943.9,9.402]
[1766634052351,0.0094757,2945.3,2944.1,0.16994]
[1766634052546,0.0094757,2945.3,2944.2,3.397]
[1766634056042,3.397,2945.7,2944.2,3.397]
[1766634056741,3.397,2945.7,2944.3,17.893]